fUSD/lending_fUSD_20250110
["ID","MTS","AMOUNT","RATE_DAILY","PERIOD"]
[348409474,1736518246024,-500.0,9.799e-05,2]
[348409475,1736518246034,-500.0,9.799e-05,2]
[348409476,1736518246044,-691.28,9.799e-05,2]
[348409477,1736518246053,-1685.45,9.799e-05,2]
[348409478,1736518246063,-500.0,9.799e-05,2]
[348409479,1736518246073,-500.0,9.799e-05,2]
[348409480,1736518246083,-500.0,9.799e-05,2]
[348409481,1736518246092,-781.58,9.799e-05,2]
[348409482,1736518246102,-9803.62,9.799e-05,2]
[348409483,1736518246111,-547.7,9.799e-05,2]
[348409484,1736518246120,-9803.62,9.799e-05,2]
[348409485,1736518246129,-500.0,9.799e-05,2]
[348409486,1736518246138,-1548.26,9.799e-05,2]
[348409487,1736518246148,-500.0,9.799e-05,2]
[348409488,1736518246157,-500.0,9.799e-05,2]
[348409489,1736518246167,-953.15,9.799e-05,2]
[348409490,1736518246177,-555.3,9.799e-05,2]
[348409491,1736518246186,-150.0,9.799e-05,2]
[348409492,1736518246195,-2258.72,9.799e-05,2]
[348409493,1736518246204,-1444.59,9.799e-05,2]
[348409494,1736518246213,-535.79,9.799e-05,2]
[348409495,1736518246223,-1583.0,9.8e-05,2]
[348409496,1736518246232,-150.0,9.802e-05,2]
[348409497,1736518246241,-1500.0,9.814e-05,2]
[348409498,1736518246250,-150.0,9.819e-05,2]
[348409499,1736518246259,-316.04,9.836e-05,2]
[348409500,1736518246269,-978.7,9.836e-05,2]
[348409501,1736518246278,-150.0,9.836e-05,2]
[348409502,1736518246287,-456.32,9.836e-05,2]
[348409503,1736518246297,-151.0,9.836e-05,2]
[348409504,1736518246307,-437.12,9.836e-05,2]
[348409505,1736518246315,-437.12,9.836e-05,2]
[348409506,1736518246327,-437.12,9.836e-05,2]
[348409507,1736518246336,-437.12,9.836e-05,2]
[348409508,1736518246345,-435.81,9.836e-05,2]
[348409509,1736518246355,-150.0,9.837e-05,2]
[348409510,1736518246364,-150.0,9.846e-05,2]
[348409511,1736518246373,-69395.00812113,9.85e-05,2]
[348409512,1736518246383,-150.0,9.853e-05,2]
[348409513,1736518246392,-150.0,9.857e-05,2]
[348409514,1736518246401,-150.0,9.859e-05,2]
[348409515,1736518246412,-150.0,9.87e-05,2]
[348409516,1736518246422,-895.1136,9.899e-05,2]
[348409517,1736518246431,-500.4953,9.9e-05,2]
[348409518,1736518246441,-787.4781,9.9e-05,2]
[348409519,1736518246453,-150.0,9.915e-05,2]
[348409520,1736518246463,-255.0,9.923e-05,2]
[348409521,1736518246472,-150.0,9.936e-05,2]
[348409522,1736518246482,-150.0,9.938e-05,2]
[348409523,1736518246491,-2407.82786602,9.941e-05,2]
[348409524,1736518246500,-150.0,9.942e-05,2]
[348409525,1736518246509,-150.0,9.968e-05,2]
[348409526,1736518246519,-1372.0,9.973e-05,2]
[348409527,1736518246528,-587.15181462,9.973e-05,2]
[348409528,1736518246538,-500.0,9.973e-05,2]
[348409529,1736518246547,-150.0,9.978e-05,2]
[348409530,1736518246557,-286.82521836,9.985e-05,2]
[348409531,1736518246566,-9617.0,9.986e-05,2]
[348409532,1736518246578,-3896.0,9.986e-05,2]
[348409533,1736518246587,-150.0,9.986e-05,2]
[348409534,1736518246597,-1173.0,9.986e-05,2]
[348409535,1736518246606,-204.585594,9.992e-05,2]
[348409536,1736518246615,-876.13276431,9.992e-05,2]
[348409537,1736518246624,-814.2870271,9.992e-05,2]
[348409538,1736518246634,-354.0540931,9.992e-05,2]
[348409539,1736518246643,-2341.2197564,9.992e-05,2]
[348409540,1736518246653,-482.0236851,9.992e-05,2]
[348409541,1736518246662,-720.8970186,9.992e-05,2]
[348409542,1736518246671,-1951.2815821,9.992e-05,2]
[348409543,1736518246680,-2936.248,9.993e-05,2]
[348409544,1736518246692,-188.178,9.993e-05,2]
[348409545,1736518246702,-988.55098312,9.995e-05,2]
[348409546,1736518246711,-500.0,9.995e-05,2]
[348409547,1736518246720,-9803.62,9.995e-05,2]
[348409548,1736518246730,-847.56,9.996e-05,2]
[348409549,1736518246739,-985.58,9.996e-05,2]
[348409550,1736518246748,-1447.28,9.996e-05,2]
[348409551,1736518246758,-1670.58,9.996e-05,2]
[348409552,1736518246767,-1554.05,9.996e-05,2]
[348409553,1736518246777,-3128.24,9.996e-05,2]
[348409554,1736518246786,-6938.3,9.996e-05,2]
[348409555,1736518246797,-500.0,9.996e-05,2]
[348409556,1736518246806,-1178.86,9.996e-05,2]
[348409557,1736518246815,-799.2,9.996e-05,2]
[348409558,1736518246827,-941.18,9.996e-05,2]
[348409559,1736518246837,-658.69,9.996e-05,2]
[348409560,1736518246846,-500.0,9.996e-05,2]
[348409561,1736518246855,-809.16,9.996e-05,2]
[348409562,1736518246865,-1210.29,9.996e-05,2]
[348409563,1736518246875,-1269.67,9.996e-05,2]
[348409564,1736518246884,-500.0,9.996e-05,2]
[348409565,1736518246894,-1103.96,9.996e-05,2]
[348409566,1736518246903,-1041.31,9.996e-05,2]
[348409567,1736518246913,-1109.2,9.996e-05,2]
[348409568,1736518246923,-1225.02,9.996e-05,2]
[348409569,1736518246932,-500.0,9.997e-05,2]
[348409570,1736518246942,-500.49217752,9.997e-05,2]
[348409571,1736518246952,-2634.38,9.997e-05,2]
[348409572,1736518246961,-500.0,9.998e-05,2]
[348409573,1736518246970,-1435755.10690744,9.998e-05,2]
[348409574,1736518246979,-9803.62,9.998e-05,2]
[348409575,1736518246988,-1059.85806145,9.999e-05,3]
[348409576,1736518246998,-215.32869607,9.999e-05,2]
[348409577,1736518247007,-500.0,9.999e-05,2]
[348409578,1736518247016,-500.0,9.999e-05,2]
[348409579,1736518247026,-5996.81,9.999e-05,2]
[348409580,1736518247035,-2100.5,9.999e-05,2]
[348409581,1736518247044,-2878.96,9.999e-05,2]
[348409582,1736518247054,-1612.03,9.999e-05,2]
[348409583,1736518247063,-1793.99,9.999e-05,2]
[348409584,1736518247074,-1047.24,9.999e-05,2]
[348409585,1736518247084,-500.0,9.999e-05,2]
[348409586,1736518247093,-1224.77,9.999e-05,2]
[348409587,1736518247102,-1263.95,9.999e-05,2]
[348409588,1736518247112,-9803.62,9.999e-05,2]
[348409589,1736518247172,-9803.62,9.999e-05,2]
[348409590,1736518247181,-9803.62,9.999e-05,2]
[348409591,1736518247190,-9803.62,9.999e-05,2]
[348409592,1736518247199,-9803.62,9.999e-05,2]
[348409593,1736518247207,-9803.62,9.999e-05,2]
[348409594,1736518247217,-9803.62,9.999e-05,2]
[348409595,1736518247226,-9803.62,9.999e-05,2]
[348409596,1736518247235,-2814.23,9.999e-05,2]
[348409597,1736518247244,-9803.62,9.999e-05,2]
[348409598,1736518247253,-9803.62,9.999e-05,2]
[348409599,1736518247262,-9803.62,9.999e-05,2]
[348409600,1736518247271,-9803.62,9.999e-05,2]
[348409601,1736518247280,-9803.62,9.999e-05,2]
[348409602,1736518247289,-9803.62,9.999e-05,2]
[348409603,1736518247297,-9803.62,9.999e-05,2]
[348409604,1736518247306,-9803.62,9.999e-05,2]
[348409605,1736518247315,-9803.62,9.999e-05,2]
[348409606,1736518247325,-9803.62,9.999e-05,2]
[348409607,1736518247334,-9803.62,9.999e-05,2]
[348409608,1736518247343,-9803.70701681,9.999e-05,2]
[348409609,1736518247352,-579.77,9.999e-05,2]
[348409610,1736518247362,-1320.67,9.999e-05,2]
[348409611,1736518247371,-784.22,9.999e-05,2]
[348409612,1736518247380,-1366.0,0.0001,2]
[348409613,1736518247389,-528860.53945624,0.0001,2]
[348409614,1736518247772,-9004.30464379,0.0001,2]
[348409615,1736518248152,-989.59,9.779e-05,2]
[348409616,1736518248163,-500.0,9.779e-05,2]
[348409617,1736518248173,-500.0,9.798e-05,2]
[348409618,1736518248182,-500.0,9.799e-05,2]
[348409619,1736518248192,-566.664288,9.999e-05,2]
[348409620,1736518248203,-563.2206978,9.999e-05,2]
[348409621,1736518248232,-104.4650142,9.999e-05,2]
[348409622,1736518248241,-1060.88819095,0.0001,2]
[348409623,1736518248258,-1277.48,0.0001,2]
[348409624,1736518248276,-4949.37144086,0.0001,2]
[348409625,1736518248287,-324.21546578,0.0001,2]
[348409626,1736518248398,-65074.7885744,0.0001,2]
[348409627,1736518248418,-3323.33727051,0.0001,2]
[348409628,1736518248888,-311.5483,9.599e-05,2]
[348409629,1736518248898,-813.31518891,9.728e-05,2]
[348409630,1736518248910,-458.00134583,9.728e-05,2]
[348409631,1736518248921,-789.99606558,9.728e-05,2]
[348409632,1736518248930,-500.0,9.779e-05,2]
[348409633,1736518248941,-500.0,9.973e-05,2]
[348409634,1736518248950,-163.10921492,9.973e-05,2]
[348409635,1736518248959,-2838.07302108,0.0001,2]
[348409636,1736518248995,-975.06641355,0.0001,2]
[348409637,1736518249007,-1558.32946893,0.0001,2]
[348409638,1736518249019,-273.88727203,0.0001,2]
[348409639,1736518249031,-535.40047792,0.0001,2]
[348409640,1736518249043,-1723.09854879,0.0001,2]
[348409641,1736518249054,-284.3,0.0001,2]
[348409642,1736518249066,-3191.0,0.0001,2]
[348409643,1736518249079,-452.9,0.0001,2]
[348409644,1736518249091,-428.9,0.0001,2]
[348409645,1736518249108,-12080.77202302,0.0001,2]
[348409646,1736518249126,-778562.6203443,0.0001,2]
[348409647,1736518249144,-2829.18561165,0.0001,2]
[348409648,1736518249156,-4479.20749108,0.0001,2]
[348409649,1736518249687,-167.56,9.195e-05,2]
[348409650,1736518249697,-500.0,9.779e-05,2]
[348409651,1736518249708,-500.0,9.798e-05,2]
[348409652,1736518249718,-354.24233617,9.798e-05,2]
[348409653,1736518249737,-155.60516638,9.798e-05,2]
[348409654,1736518249747,-285.02849894,9.798e-05,2]
[348409655,1736518249758,-155.530194,9.798e-05,2]
[348409656,1736518249768,-500.0,9.798e-05,2]
[348409657,1736518249778,-502.21321474,9.798e-05,2]
[348409658,1736518249787,-500.0,9.973e-05,2]
[348409659,1736518249796,-151.84399313,9.973e-05,2]
[348409660,1736518249806,-7156.81543949,0.0001,2]
[348409661,1736518249859,-32356.76284046,0.0001,2]
[348409662,1736518249871,-2918.56297142,0.0001,2]
[348409663,1736518249886,-5368.25816041,0.0001,2]
[348409664,1736518279540,161.0,0.0001,30]
[348409665,1736518502938,162.35042838,0.0001,30]
[348409677,1736518802228,159.0,0.0001,30]
[348409678,1736518803866,156.11287,0.0001,30]
[348409679,1736518892779,664.06,8.219e-05,2]
[348409681,1736519114889,1371.29753587,0.000121,30]
[348409682,1736519131656,159.3164121,0.0001,30]
[348409727,1736519432230,-2136.91106986,8.682e-05,2]
[348409728,1736519432239,-2000.0,8.682e-05,2]
[348409729,1736519432249,-3561.07,8.682e-05,2]
[348409730,1736519432258,-12361.86,8.733e-05,2]
[348409731,1736519432268,-250.0,8.77e-05,2]
[348409732,1736519432277,-881.79,8.808e-05,2]
[348409733,1736519432291,-250.0,8.842e-05,2]
[348409734,1736519432300,-353.47,8.87e-05,2]
[348409735,1736519432310,-163.4,8.938e-05,2]
[348409736,1736519432319,-160.61,9.022e-05,2]
[348409738,1736519432329,-2300.0,9.4e-05,3]
[348409740,1736519432338,-150.0,9.499e-05,2]
[348409742,1736519432347,-156.354,9.5e-05,2]
[348409744,1736519432356,-150.99,9.5e-05,2]
[348409746,1736519432365,-9999.99,9.5e-05,2]
[348409747,1736519432375,-3478.1,9.5e-05,2]
[348409748,1736519432384,-327.92,9.5e-05,2]
[348409749,1736519432393,-4600.0,9.5e-05,3]
[348409750,1736519432403,-2627.3273,9.58e-05,2]
[348409751,1736519432412,-220.195,9.58e-05,2]
[348409752,1736519432421,-4951.6813,9.58e-05,2]
[348409753,1736519432430,-265.5569,9.58e-05,2]
[348409754,1736519432439,-1057.9223,9.58e-05,2]
[348409755,1736519432449,-2827.2686,9.58e-05,2]
[348409757,1736519432459,-1250.95814234,9.596e-05,2]
[348409758,1736519432468,-1250.95814234,9.596e-05,2]
[348409760,1736519432478,-5213.7101,9.599e-05,2]
[348409762,1736519432487,-4294.9965,9.599e-05,2]
[348409763,1736519432497,-3781.0722,9.599e-05,2]
[348409764,1736519432506,-1088.2191,9.6e-05,2]
[348409765,1736519432516,-1280.1786,9.6e-05,2]
[348409766,1736519432526,-757.8175,9.6e-05,2]
[348409767,1736519432536,-6900.0,9.6e-05,3]
[348409768,1736519432552,-16696.0,9.601e-05,2]
[348409769,1736519432562,-1000.0,9.628e-05,2]
[348409770,1736519432572,-2500.0,9.678e-05,2]
[348409771,1736519432582,-5000.0,9.679e-05,2]
[348409772,1736519432591,-74329.8481,9.68e-05,2]
[348409773,1736519432600,-23233.7018,9.68e-05,2]
[348409774,1736519432610,-19006.1889,9.698e-05,2]
[348409775,1736519432619,-9300.0,9.7e-05,3]
[348409776,1736519432628,-6169.30901992,9.728e-05,2]
[348409777,1736519432637,-500.0,9.775e-05,2]
[348409778,1736519432647,-886.24,9.775e-05,2]
[348409779,1736519432657,-1220.82,9.776e-05,2]
[348409780,1736519432667,-1025.27,9.776e-05,2]
[348409781,1736519432676,-1112.61,9.776e-05,2]
[348409782,1736519432686,-500.0,9.776e-05,2]
[348409783,1736519432695,-500.0,9.776e-05,2]
[348409784,1736519432704,-500.0,9.776e-05,2]
[348409785,1736519432713,-500.0,9.776e-05,2]
[348409786,1736519432723,-500.0,9.776e-05,2]
[348409787,1736519432732,-500.0,9.776e-05,2]
[348409788,1736519432740,-500.85699091,9.776e-05,2]
[348409789,1736519432750,-500.0,9.776e-05,2]
[348409790,1736519432759,-500.0,9.776e-05,2]
[348409791,1736519432769,-500.0,9.776e-05,2]
[348409792,1736519432779,-596.6,9.776e-05,2]
[348409793,1736519432788,-500.0,9.776e-05,2]
[348409794,1736519432800,-1750.52,9.777e-05,2]
[348409795,1736519432810,-500.0,9.777e-05,2]
[348409796,1736519432819,-1115.75,9.777e-05,2]
[348409797,1736519432828,-981.61,9.777e-05,2]
[348409798,1736519432837,-1532.05,9.777e-05,2]
[348409799,1736519432848,-1714.32,9.777e-05,2]
[348409800,1736519432857,-500.0,9.777e-05,2]
[348409801,1736519432867,-2417.02,9.777e-05,2]
[348409802,1736519432876,-2538.21,9.777e-05,2]
[348409803,1736519432885,-3616.53,9.777e-05,2]
[348409804,1736519432895,-2032.09,9.777e-05,2]
[348409805,1736519432904,-1592.72,9.777e-05,2]
[348409806,1736519432913,-500.0,9.777e-05,2]
[348409807,1736519432922,-1325.76,9.777e-05,2]
[348409808,1736519432932,-1216.63,9.777e-05,2]
[348409809,1736519432942,-1084.48,9.777e-05,2]
[348409810,1736519432951,-900.249469,9.777e-05,2]
[348409811,1736519432961,-158.15319,9.777e-05,2]
[348409812,1736519432970,-156.345611,9.777e-05,2]
[348409813,1736519432980,-500.0,9.777e-05,2]
[348409814,1736519432989,-500.0,9.778e-05,2]
[348409815,1736519432998,-500.0,9.778e-05,2]
[348409816,1736519433007,-500.0,9.778e-05,2]
[348409817,1736519433017,-500.0,9.778e-05,2]
[348409818,1736519433026,-500.0,9.778e-05,2]
[348409819,1736519433035,-435.35717834,9.778e-05,2]
[348409820,1736519433048,-500.0,9.778e-05,2]
[348409821,1736519433058,-500.0,9.778e-05,2]
[348409822,1736519433068,-500.0,9.778e-05,2]
[348409823,1736519433078,-500.0,9.778e-05,2]
[348409824,1736519433088,-500.0,9.778e-05,2]
[348409825,1736519433098,-895.58,9.778e-05,2]
[348409826,1736519433112,-775.39,9.778e-05,2]
[348409827,1736519433122,-703.87,9.778e-05,2]
[348409828,1736519433132,-500.0,9.778e-05,2]
[348409829,1736519433143,-819.11,9.778e-05,2]
[348409830,1736519433153,-500.0,9.778e-05,2]
[348409831,1736519433162,-500.0,9.778e-05,2]
[348409832,1736519433172,-500.0,9.778e-05,2]
[348409833,1736519433182,-500.0,9.778e-05,2]
[348409834,1736519433191,-500.0,9.778e-05,2]
[348409835,1736519433201,-500.0,9.778e-05,2]
[348409836,1736519433210,-500.0,9.778e-05,2]
[348409837,1736519433219,-500.0,9.778e-05,2]
[348409838,1736519433229,-500.0,9.778e-05,2]
[348409839,1736519433239,-500.0,9.778e-05,2]
[348409840,1736519433248,-643.05,9.778e-05,2]
[348409841,1736519433257,-874.99,9.778e-05,2]
[348409842,1736519433267,-500.0,9.778e-05,2]
[348409843,1736519433276,-500.0,9.778e-05,2]
[348409844,1736519433285,-500.0,9.778e-05,2]
[348409845,1736519433298,-813.12,9.778e-05,2]
[348409846,1736519433308,-500.0,9.778e-05,2]
[348409847,1736519433317,-711.72,9.778e-05,2]
[348409848,1736519433327,-500.0,9.778e-05,2]
[348409849,1736519433336,-500.0,9.778e-05,2]
[348409850,1736519433346,-500.0,9.778e-05,2]
[348409851,1736519433356,-211.64581508,9.778e-05,2]
[348409852,1736519433366,-501.13455637,9.778e-05,2]
[348409853,1736519433375,-534.59,9.778e-05,2]
[348409854,1736519433384,-500.0,9.778e-05,2]
[348409855,1736519433394,-500.0,9.778e-05,2]
[348409856,1736519433403,-543.67,9.778e-05,2]
[348409857,1736519433412,-500.0,9.778e-05,2]
[348409858,1736519433422,-500.0,9.778e-05,2]
[348409859,1736519433431,-500.0,9.778e-05,2]
[348409860,1736519433440,-872.2,9.778e-05,2]
[348409861,1736519433449,-582.47,9.778e-05,2]
[348409862,1736519433459,-500.0,9.778e-05,2]
[348409863,1736519433468,-500.0,9.778e-05,2]
[348409864,1736519433478,-500.0,9.778e-05,2]
[348409865,1736519433487,-710.61,9.778e-05,2]
[348409866,1736519433496,-500.0,9.778e-05,2]
[348409867,1736519433505,-500.0,9.778e-05,2]
[348409868,1736519433515,-902.86,9.778e-05,2]
[348409869,1736519433525,-500.0,9.778e-05,2]
[348409870,1736519433534,-500.0,9.778e-05,2]
[348409871,1736519433547,-500.0,9.778e-05,2]
[348409872,1736519433557,-500.0,9.778e-05,2]
[348409873,1736519433567,-997.6,9.778e-05,2]
[348409874,1736519433576,-613.53682204,9.778e-05,2]
[348409875,1736519433589,-646.07,9.778e-05,2]
[348409876,1736519433606,-617.17,9.778e-05,2]
[348409877,1736519433617,-333.9712648,9.778e-05,2]
[348409878,1736519433634,-500.0,9.778e-05,2]
[348409879,1736519433650,-500.0,9.778e-05,2]
[348409880,1736519433659,-500.0,9.778e-05,2]
[348409881,1736519433669,-500.0,9.778e-05,2]
[348409882,1736519433678,-500.0,9.778e-05,2]
[348409883,1736519433688,-982.4,9.778e-05,2]
[348409884,1736519433697,-500.0,9.778e-05,2]
[348409885,1736519433706,-500.0,9.778e-05,2]
[348409886,1736519433716,-750.33,9.778e-05,2]
[348409887,1736519433725,-973.92,9.778e-05,2]
[348409888,1736519433734,-500.0,9.778e-05,2]
[348409889,1736519433744,-500.0,9.778e-05,2]
[348409890,1736519433754,-500.0,9.778e-05,2]
[348409891,1736519433763,-837.95,9.778e-05,2]
[348409892,1736519433773,-1040.61,9.778e-05,2]
[348409893,1736519433783,-500.0,9.778e-05,2]
[348409894,1736519433795,-646.09,9.778e-05,2]
[348409895,1736519433805,-500.0,9.778e-05,2]
[348409896,1736519433815,-889.01,9.778e-05,2]
[348409897,1736519433831,-909.82,9.778e-05,2]
[348409898,1736519433845,-873.98,9.778e-05,2]
[348409899,1736519433854,-938.9,9.778e-05,2]
[348409900,1736519433864,-849.33,9.778e-05,2]
[348409901,1736519433874,-561.51,9.778e-05,2]
[348409902,1736519433884,-1963.11,9.778e-05,2]
[348409903,1736519433894,-598.52,9.778e-05,2]
[348409904,1736519433903,-500.0,9.778e-05,2]
[348409905,1736519433913,-1004.38,9.778e-05,2]
[348409906,1736519433923,-504.97943525,9.778e-05,2]
[348409907,1736519433933,-500.0,9.778e-05,2]
[348409908,1736519433942,-1613.47,9.778e-05,2]
[348409909,1736519433952,-500.0,9.778e-05,2]
[348409910,1736519433962,-1617.29,9.778e-05,2]
[348409911,1736519433972,-778.34,9.778e-05,2]
[348409912,1736519433982,-245.1410807,9.778e-05,2]
[348409913,1736519433991,-867.75,9.778e-05,2]
[348409914,1736519434000,-500.0,9.778e-05,2]
[348409915,1736519434010,-920.91,9.778e-05,2]
[348409916,1736519434019,-417.30515528,9.778e-05,2]
[348409917,1736519434029,-790.05,9.778e-05,2]
[348409918,1736519434039,-500.0,9.778e-05,2]
[348409919,1736519434051,-500.0,9.778e-05,2]
[348409920,1736519434061,-500.0,9.778e-05,2]
[348409921,1736519434070,-1880.09108391,9.778e-05,2]
[348409922,1736519434084,-495.86891609,9.778e-05,2]
[348409923,1736519434095,-504.63739607,9.778e-05,2]
[348409924,1736519434109,-500.0,9.778e-05,2]
[348409925,1736519434119,-815.71,9.778e-05,2]
[348409926,1736519434129,-2108.67,9.778e-05,2]
[348409927,1736519434141,-2089.86,9.778e-05,2]
[348409928,1736519434150,-644.02,9.778e-05,2]
[348409929,1736519434160,-8222.85,9.778e-05,2]
[348409930,1736519434170,-1030.41,9.778e-05,2]
[348409931,1736519434181,-1021.12,9.778e-05,2]
[348409932,1736519434190,-500.0,9.778e-05,2]
[348409933,1736519434201,-978.61,9.778e-05,2]
[348409934,1736519434211,-1457.35,9.778e-05,2]
[348409935,1736519434221,-995.8,9.778e-05,2]
[348409936,1736519434231,-500.0,9.778e-05,2]
[348409937,1736519434240,-1926.71,9.778e-05,2]
[348409938,1736519434250,-1426.98,9.778e-05,2]
[348409939,1736519434260,-495.07382589,9.778e-05,2]
[348409940,1736519434270,-2418.54,9.778e-05,2]
[348409941,1736519434280,-866.61,9.778e-05,2]
[348409942,1736519434290,-810.32,9.778e-05,2]
[348409943,1736519434303,-688.34,9.778e-05,2]
[348409944,1736519434312,-500.0,9.778e-05,2]
[348409945,1736519434322,-4271.97,9.778e-05,2]
[348409946,1736519434331,-500.0,9.778e-05,2]
[348409947,1736519434341,-2261.06803134,9.778e-05,2]
[348409948,1736519434365,-2009.45196866,9.778e-05,2]
[348409949,1736519434375,-644.04,9.778e-05,2]
[348409950,1736519434384,-565.83,9.778e-05,2]
[348409951,1736519434394,-831.72,9.778e-05,2]
[348409952,1736519434404,-504.3808806,9.778e-05,2]
[348409953,1736519434414,-4113.86,9.778e-05,2]
[348409954,1736519434423,-1208.13,9.778e-05,2]
[348409955,1736519434433,-518.85,9.778e-05,2]
[348409956,1736519434443,-1122.74,9.778e-05,2]
[348409957,1736519434452,-693.62889849,9.778e-05,2]
[348409958,1736519434464,-507.959,9.778e-05,2]
[348409959,1736519434496,-504.64261165,9.778e-05,2]
[348409960,1736519434507,-387.0,9.778e-05,2]
[348409961,1736519434536,-1469.95948986,9.778e-05,2]
[348409962,1736519434550,-998.82,9.779e-05,2]
[348409963,1736519434559,-500.0,9.779e-05,2]
[348409964,1736519434569,-813.71,9.779e-05,2]
[348409965,1736519434578,-859.62,9.779e-05,2]
[348409966,1736519434588,-931.67,9.779e-05,2]
[348409967,1736519434597,-500.0,9.779e-05,2]
[348409968,1736519434606,-500.0,9.779e-05,2]
[348409969,1736519434615,-500.0,9.779e-05,2]
[348409970,1736519434624,-816.9,9.779e-05,2]
[348409971,1736519434634,-500.0,9.779e-05,2]
[348409972,1736519434644,-500.0,9.779e-05,2]
[348409973,1736519434653,-837.5,9.779e-05,2]
[348409974,1736519434663,-500.0,9.779e-05,2]
[348409975,1736519434672,-500.0,9.779e-05,2]
[348409976,1736519434682,-500.0,9.779e-05,2]
[348409977,1736519434691,-575.8,9.779e-05,2]
[348409978,1736519434700,-215.32869607,9.779e-05,2]
[348409979,1736519434710,-500.0,9.779e-05,2]
[348409980,1736519434719,-746.68,9.779e-05,2]
[348409981,1736519434728,-500.0,9.779e-05,2]
[348409982,1736519434738,-500.0,9.779e-05,2]
[348409983,1736519434749,-500.0,9.779e-05,2]
[348409984,1736519434758,-744.19,9.779e-05,2]
[348409985,1736519434767,-500.0,9.779e-05,2]
[348409986,1736519434776,-500.0,9.779e-05,2]
[348409987,1736519434786,-500.0,9.779e-05,2]
[348409988,1736519434801,-500.0,9.779e-05,2]
[348409989,1736519434814,-500.0,9.779e-05,2]
[348409990,1736519434825,-832.54,9.779e-05,2]
[348409991,1736519434835,-500.0,9.779e-05,2]
[348409992,1736519434845,-500.0,9.779e-05,2]
[348409993,1736519434855,-500.0,9.779e-05,2]
[348409994,1736519434865,-500.0,9.779e-05,2]
[348409995,1736519434875,-500.0,9.779e-05,2]
[348409996,1736519434885,-664.18,9.779e-05,2]
[348409997,1736519434895,-500.0,9.779e-05,2]
[348409998,1736519434905,-611.69,9.779e-05,2]
[348409999,1736519434915,-500.0,9.779e-05,2]
[348410000,1736519434924,-500.0,9.779e-05,2]
[348410001,1736519434935,-500.0,9.779e-05,2]
[348410002,1736519434945,-500.0,9.779e-05,2]
[348410003,1736519434955,-500.0,9.779e-05,2]
[348410004,1736519434965,-500.0,9.779e-05,2]
[348410005,1736519434975,-591.84,9.779e-05,2]
[348410006,1736519434985,-500.0,9.779e-05,2]
[348410007,1736519434994,-761.67,9.779e-05,2]
[348410008,1736519435004,-500.0,9.779e-05,2]
[348410009,1736519435014,-500.0,9.779e-05,2]
[348410010,1736519435024,-500.0,9.779e-05,2]
[348410011,1736519435034,-579.11,9.779e-05,2]
[348410012,1736519435052,-500.0,9.779e-05,2]
[348410013,1736519435062,-500.0,9.779e-05,2]
[348410014,1736519435072,-502.99251895,9.779e-05,2]
[348410015,1736519435081,-695.48,9.779e-05,2]
[348410016,1736519435091,-500.0,9.779e-05,2]
[348410017,1736519435101,-571.89,9.779e-05,2]
[348410018,1736519435113,-1872.79,9.779e-05,2]
[348410019,1736519435124,-776.31,9.779e-05,2]
[348410020,1736519435134,-500.0,9.779e-05,2]
[348410021,1736519435143,-500.0,9.779e-05,2]
[348410022,1736519435155,-500.0,9.779e-05,2]
[348410023,1736519435165,-500.0,9.779e-05,2]
[348410024,1736519435175,-500.0,9.779e-05,2]
[348410025,1736519435186,-3744.11,9.779e-05,2]
[348410026,1736519435196,-500.0,9.779e-05,2]
[348410027,1736519435206,-556.61,9.779e-05,2]
[348410028,1736519435215,-506.82,9.779e-05,2]
[348410029,1736519435225,-1013.6,9.779e-05,2]
[348410030,1736519435235,-789.61,9.779e-05,2]
[348410031,1736519435244,-1001.61,9.779e-05,2]
[348410032,1736519435253,-1032.37,9.779e-05,2]
[348410033,1736519435263,-500.0,9.779e-05,2]
[348410034,1736519435273,-500.0,9.779e-05,2]
[348410035,1736519435283,-500.0,9.779e-05,2]
[348410036,1736519435299,-500.0,9.779e-05,2]
[348410037,1736519435312,-683.31,9.779e-05,2]